[Event "Live Chess"]
[Site "Chess.com"]
[Date "2024.06.02"]
[Round "-"]
[White "NottheBishopSacrifice"]
[Black "JohanKjeldahl"]
[Result "1-0"]
[WhiteElo "2311"]
[BlackElo "1866"]
[TimeControl "300"]
[EndTime "1:11:31 PDT"]
[Termination "NottheBishopSacrifice won by resignation"]

1. Nf3 {[%clk 0:04:58.9]} 1... Nf6 {[%clk 0:04:57.6]} 2. g3 {[%clk 0:04:58.3]}
2... g6 {[%clk 0:04:56.6]} 3. Bg2 {[%clk 0:04:57.9]} 3... Bg7 {[%clk 0:04:56.2]}
4. O-O {[%clk 0:04:57.1]} 4... O-O {[%clk 0:04:54.8]} 5. c4 {[%clk 0:04:56.7]}
5... d6 {[%clk 0:04:51.9]} 6. Nc3 {[%clk 0:04:56.2]} 6... e5 {[%clk 0:04:50.8]}
7. d3 {[%clk 0:04:54.9]} 7... c6 {[%clk 0:04:49.8]} 8. Bd2 {[%clk 0:04:54.4]}
8... Nbd7 {[%clk 0:04:46.6]} 9. b4 {[%clk 0:04:52.9]} 9... a5 {[%clk 0:04:43]}
10. b5 {[%clk 0:04:52.1]} 10... Qc7 {[%clk 0:04:36.2]} 11. Rb1 {[%clk
0:04:49.8]} 11... Nc5 {[%clk 0:04:32.1]} 12. Be3 {[%clk 0:04:46.6]} 12... Ne6
{[%clk 0:04:28.7]} 13. bxc6 {[%clk 0:04:44.2]} 13... bxc6 {[%clk 0:04:26.6]} 14.
Bb6 {[%clk 0:04:43.7]} 14... Qd7 {[%clk 0:04:22.4]} 15. c5 {[%clk 0:04:40.1]}
15... Nxc5 {[%clk 0:04:05.8]} 16. Bxc5 {[%clk 0:04:35.7]} 16... dxc5 {[%clk
0:04:04.9]} 17. Na4 {[%clk 0:04:35.3]} 17... Qd6 {[%clk 0:03:52.6]} 18. Nb6
{[%clk 0:04:29.5]} 18... Rb8 {[%clk 0:03:49.5]} 19. Nc4 {[%clk 0:04:29]} 19...
Rxb1 {[%clk 0:03:44.2]} 20. Qxb1 {[%clk 0:04:28.9]} 20... Qe6 {[%clk 0:03:33.4]}
21. Nxa5 {[%clk 0:04:26.2]} 21... Nd5 {[%clk 0:03:27.8]} 22. Nc4 {[%clk
0:04:23.7]} 22... Ba6 {[%clk 0:03:16]} 23. Rc1 {[%clk 0:04:20.1]} 23... h6
{[%clk 0:03:04.9]} 24. Nfd2 {[%clk 0:04:17.4]} 24... f5 {[%clk 0:02:54.8]} 25.
Nb3 {[%clk 0:04:15.3]} 25... Qe7 {[%clk 0:02:45.9]} 26. Nca5 {[%clk 0:04:13]}
26... Bb5 {[%clk 0:02:35.2]} 27. Nxc5 {[%clk 0:04:10.9]} 27... e4 {[%clk
0:02:33.4]} 28. a4 {[%clk 0:04:07.5]} 28... exd3 {[%clk 0:02:28]} 29. axb5
{[%clk 0:04:02.3]} 29... dxe2 {[%clk 0:02:24.3]} 30. Nxc6 {[%clk 0:03:59.7]}
30... Qd6 {[%clk 0:02:18.9]} 31. Bxd5+ {[%clk 0:03:56.3]} 31... Qxd5 {[%clk
0:02:17.2]} 32. Ne7+ {[%clk 0:03:54.9]} 1-0

[Event "Live Chess"]
[Site "Chess.com"]
[Date "2024.06.02"]
[Round "-"]
[White "chessgoatpawel"]
[Black "Hoogleboogle"]
[Result "1-0"]
[WhiteElo "2038"]
[BlackElo "1328"]
[TimeControl "300"]
[EndTime "1:11:37 PDT"]
[Termination "chessgoatpawel won on time"]

1. e4 {[%clk 0:04:58.9]} 1... c6 {[%clk 0:04:56.9]} 2. d4 {[%clk 0:04:57.5]}
2... d5 {[%clk 0:04:54.7]} 3. e5 {[%clk 0:04:57.4]} 3... Bf5 {[%clk 0:04:51.5]}
4. h4 {[%clk 0:04:56.9]} 4... h5 {[%clk 0:04:45.2]} 5. Bd3 {[%clk 0:04:54.5]}
5... Bxd3 {[%clk 0:04:36.7]} 6. Qxd3 {[%clk 0:04:54.4]} 6... e6 {[%clk
0:04:30.5]} 7. Nf3 {[%clk 0:04:52.5]} 7... Ne7 {[%clk 0:04:25.3]} 8. Bg5 {[%clk
0:04:50.7]} 8... Qb6 {[%clk 0:04:18.9]} 9. Nbd2 {[%clk 0:04:41.8]} 9... Qxb2
{[%clk 0:04:14.5]} 10. Rb1 {[%clk 0:04:40.6]} 10... Qxa2 {[%clk 0:04:05]} 11.
Rxb7 {[%clk 0:04:39.8]} 11... Qa1+ {[%clk 0:03:59]} 12. Nb1 {[%clk 0:04:30.7]}
12... Nd7 {[%clk 0:03:45.6]} 13. Qc3 {[%clk 0:04:19.8]} 13... Qxc3+ {[%clk
0:03:40.3]} 14. Nxc3 {[%clk 0:04:19.7]} 14... a6 {[%clk 0:03:33.6]} 15. O-O
{[%clk 0:04:12]} 15... Ng6 {[%clk 0:03:25.1]} 16. Rfb1 {[%clk 0:04:08.1]} 16...
Be7 {[%clk 0:03:19.8]} 17. Bxe7 {[%clk 0:04:03.5]} 17... Kxe7 {[%clk 0:03:16.6]}
18. Na4 {[%clk 0:03:58.9]} 18... Rhb8 {[%clk 0:03:13]} 19. Nc5 {[%clk
0:03:49.1]} 19... Rxb7 {[%clk 0:02:51.3]} 20. Rxb7 {[%clk 0:03:49]} 20... Nf8
{[%clk 0:02:39]} 21. Ng5 {[%clk 0:03:36.7]} 21... a5 {[%clk 0:02:34.6]} 22. Nxf7
{[%clk 0:03:29.4]} 22... a4 {[%clk 0:02:31.6]} 23. Nxd7 {[%clk 0:03:01]} 23...
Nxd7 {[%clk 0:02:28]} 24. Nd6 {[%clk 0:02:57.1]} 24... a3 {[%clk 0:02:22]} 25.
Rb1 {[%clk 0:02:54.1]} 25... a2 {[%clk 0:02:18.9]} 26. Ra1 {[%clk 0:02:50.6]}
26... c5 {[%clk 0:02:07.8]} 27. c3 {[%clk 0:02:34.6]} 27... cxd4 {[%clk
0:01:50.8]} 28. cxd4 {[%clk 0:02:32.9]} 28... Nb6 {[%clk 0:01:48.8]} 29. Nb5
{[%clk 0:02:23.3]} 29... Ra4 {[%clk 0:01:23.4]} 30. Nc3 {[%clk 0:02:09]} 30...
Rxd4 {[%clk 0:01:19.1]} 31. Rxa2 {[%clk 0:02:06.9]} 31... Nc4 {[%clk 0:01:13.8]}
32. Ra7+ {[%clk 0:02:04.6]} 32... Kf8 {[%clk 0:01:10.7]} 33. Ne2 {[%clk
0:01:53.9]} 33... Rd1+ {[%clk 0:01:06.3]} 34. Kh2 {[%clk 0:01:50.7]} 34... Re1
{[%clk 0:01:04.7]} 35. Nf4 {[%clk 0:01:47.6]} 35... Rxe5 {[%clk 0:01:00.4]} 36.
Ng6+ {[%clk 0:01:46]} 36... Kg8 {[%clk 0:00:54.8]} 37. Nxe5 {[%clk 0:01:43.7]}
37... Nxe5 {[%clk 0:00:53.5]} 38. Re7 {[%clk 0:01:40.7]} 38... Ng4+ {[%clk
0:00:40.2]} 39. Kg3 {[%clk 0:01:36.5]} 39... d4 {[%clk 0:00:37.4]} 40. Rxe6
{[%clk 0:01:33.4]} 40... d3 {[%clk 0:00:35.8]} 41. Rd6 {[%clk 0:01:31.4]} 41...
Ne5 {[%clk 0:00:30.7]} 42. f4 {[%clk 0:01:29.4]} 42... Ng4 {[%clk 0:00:23.5]}
43. Rxd3 {[%clk 0:01:27.6]} 43... Kf7 {[%clk 0:00:21.6]} 44. Rd7+ {[%clk
0:01:26.3]} 44... Kf6 {[%clk 0:00:19.9]} 45. Rd6+ {[%clk 0:01:25.2]} 45... Kf7
{[%clk 0:00:13.8]} 46. Rd5 {[%clk 0:01:23.9]} 46... g6 {[%clk 0:00:11.2]} 47.
Rg5 {[%clk 0:01:21.8]} 47... Kf6 {[%clk 0:00:09]} 48. Rxg4 {[%clk 0:01:20.9]}
48... hxg4 {[%clk 0:00:06.5]} 49. Kxg4 {[%clk 0:01:20.8]} 49... Kg7 {[%clk
0:00:03.1]} 50. Kg5 {[%clk 0:01:20.7]} 50... Kh7 {[%clk 0:00:01.6]} 51. g4
{[%clk 0:01:20.6]} 1-0

[Event "Live Chess"]
[Site "Chess.com"]
[Date "2024.06.02"]
[Round "-"]
[White "Bradfield133"]
[Black "Crowded_House"]
[Result "1-0"]
[WhiteElo "1870"]
[BlackElo "1645"]
[TimeControl "300"]
[EndTime "1:11:53 PDT"]
[Termination "Bradfield133 won by resignation"]

1. c4 {[%clk 0:04:57.7]} 1... e6 {[%clk 0:04:59.2]} 2. e4 {[%clk 0:04:55.8]}
2... d5 {[%clk 0:04:58.2]} 3. exd5 {[%clk 0:04:55.7]} 3... exd5 {[%clk
0:04:57.5]} 4. d4 {[%clk 0:04:54.9]} 4... c6 {[%clk 0:04:55.6]} 5. Nc3 {[%clk
0:04:54.3]} 5... Bb4 {[%clk 0:04:51.9]} 6. Nf3 {[%clk 0:04:52.1]} 6... Ne7
{[%clk 0:04:49.3]} 7. Bd3 {[%clk 0:04:48.3]} 7... Bg4 {[%clk 0:04:48.2]} 8. Be3
{[%clk 0:04:40.2]} 8... O-O {[%clk 0:04:46.8]} 9. O-O {[%clk 0:04:37.3]} 9...
Re8 {[%clk 0:04:39.7]} 10. Bxh7+ {[%clk 0:04:33.2]} 10... Kh8 {[%clk 0:04:34.4]}
11. Bd3 {[%clk 0:04:16.4]} 11... Nd7 {[%clk 0:04:23.3]} 12. Ng5 {[%clk
0:04:00.7]} 12... Bxd1 {[%clk 0:04:20]} 13. Nxf7+ {[%clk 0:03:59.5]} 13... Kg8
{[%clk 0:04:17.5]} 14. Nxd8 {[%clk 0:03:58.5]} 14... Raxd8 {[%clk 0:04:15.5]}
15. Raxd1 {[%clk 0:03:55.2]} 15... Nf6 {[%clk 0:03:58.6]} 16. a3 {[%clk
0:03:48.1]} 16... Bxc3 {[%clk 0:03:56.2]} 17. bxc3 {[%clk 0:03:46.7]} 17... dxc4
{[%clk 0:03:50.3]} 18. Bxc4+ {[%clk 0:03:44.2]} 18... Ned5 {[%clk 0:03:49.8]}
19. Bg5 {[%clk 0:03:39.1]} 19... Kf8 {[%clk 0:03:42.8]} 20. Bxd5 {[%clk
0:03:35.9]} 20... Rxd5 {[%clk 0:03:35.6]} 21. Bxf6 {[%clk 0:03:34.1]} 21... gxf6
{[%clk 0:03:34.2]} 22. Rb1 {[%clk 0:03:25]} 22... b6 {[%clk 0:03:32.3]} 23. Rfe1
{[%clk 0:03:16.1]} 23... Rxe1+ {[%clk 0:03:28.5]} 24. Rxe1 {[%clk 0:03:14.1]}
24... c5 {[%clk 0:03:27.6]} 25. Rd1 {[%clk 0:03:08.1]} 25... cxd4 {[%clk
0:03:19.5]} 26. cxd4 {[%clk 0:03:01.1]} 26... a5 {[%clk 0:03:15]} 27. g3 {[%clk
0:02:54.3]} 27... b5 {[%clk 0:03:13.9]} 28. Kg2 {[%clk 0:02:48.4]} 28... b4
{[%clk 0:03:13.2]} 29. axb4 {[%clk 0:02:46.3]} 29... axb4 {[%clk 0:03:12.7]} 30.
Rd3 {[%clk 0:02:41.1]} 30... Rb5 {[%clk 0:03:00.1]} 31. Rb3 {[%clk 0:02:38.9]}
31... Ke7 {[%clk 0:02:58.8]} 32. Kf3 {[%clk 0:02:37.4]} 32... Kd6 {[%clk
0:02:57]} 33. Ke4 {[%clk 0:02:34.6]} 33... Rb8 {[%clk 0:02:45.9]} 34. h4 {[%clk
0:02:29.3]} 34... f5+ {[%clk 0:02:38.4]} 35. Kxf5 {[%clk 0:02:25.6]} 35... Kd5
{[%clk 0:02:37.9]} 36. h5 {[%clk 0:02:11.2]} 36... Kxd4 {[%clk 0:02:37]} 37. h6
{[%clk 0:02:05.8]} 37... Kc4 {[%clk 0:02:36.4]} 38. Re3 {[%clk 0:02:01.6]} 38...
b3 {[%clk 0:02:35.5]} 39. Rxb3 {[%clk 0:01:58.5]} 39... Rxb3 {[%clk 0:02:33.6]}
40. h7 {[%clk 0:01:56.3]} 40... Rb8 {[%clk 0:02:26.1]} 41. g4 {[%clk 0:01:52.6]}
41... Kd5 {[%clk 0:02:22.2]} 42. g5 {[%clk 0:01:50.4]} 42... Rf8+ {[%clk
0:02:18.6]} 43. Kg6 {[%clk 0:01:48.2]} 43... Ke6 {[%clk 0:02:15]} 44. f4 {[%clk
0:01:36]} 44... Ke7 {[%clk 0:02:11]} 45. f5 {[%clk 0:01:29.8]} 45... Ke8 {[%clk
0:02:08]} 46. Kg7 {[%clk 0:01:15.6]} 46... Rf7+ {[%clk 0:02:03.4]} 47. Kg8
{[%clk 0:01:13.7]} 47... Rf8+ {[%clk 0:02:02.4]} 48. Kg7 {[%clk 0:01:12.7]}
48... Rf7+ {[%clk 0:02:01.9]} 49. Kg6 {[%clk 0:01:11.7]} 49... Rf8 {[%clk
0:01:59.3]} 50. f6 {[%clk 0:01:08.9]} 50... Kd7 {[%clk 0:01:47.4]} 51. Kg7
{[%clk 0:01:02.5]} 51... Rd8 {[%clk 0:01:40.3]} 52. h8=Q {[%clk 0:00:59.5]}
52... Rxh8 {[%clk 0:01:39.9]} 53. Kxh8 {[%clk 0:00:58.4]} 53... Ke6 {[%clk
0:01:38.7]} 54. Kg7 {[%clk 0:00:55.4]} 54... Kf5 {[%clk 0:01:36.1]} 55. f7
{[%clk 0:00:54.2]} 55... Kxg5 {[%clk 0:01:35.6]} 56. f8=Q {[%clk 0:00:53.1]} 1-0

[Event "Live Chess"]
[Site "Chess.com"]
[Date "2024.06.02"]
[Round "-"]
[White "Cimon"]
[Black "elephantgerrald"]
[Result "1-0"]
[WhiteElo "1805"]
[BlackElo "852"]
[TimeControl "300"]
[EndTime "1:12:07 PDT"]
[Termination "Cimon won by checkmate"]

1. d4 {[%clk 0:04:57.7]} 1... d5 {[%clk 0:04:58.8]} 2. e3 {[%clk 0:04:54.5]}
2... Nc6 {[%clk 0:04:57.5]} 3. c3 {[%clk 0:04:52]} 3... Nf6 {[%clk 0:04:55.5]}
4. Bd3 {[%clk 0:04:50.7]} 4... g6 {[%clk 0:04:52.5]} 5. Nf3 {[%clk 0:04:46.7]}
5... Bg7 {[%clk 0:04:51.1]} 6. Nbd2 {[%clk 0:04:42.3]} 6... O-O {[%clk 0:04:50]}
7. Qe2 {[%clk 0:04:39.3]} 7... Bg4 {[%clk 0:04:44.8]} 8. h3 {[%clk 0:04:37.9]}
8... Bxf3 {[%clk 0:04:39.7]} 9. Nxf3 {[%clk 0:04:36]} 9... b6 {[%clk 0:04:35.1]}
10. Bb5 {[%clk 0:04:18.7]} 10... Qd7 {[%clk 0:04:21.5]} 11. Ne5 {[%clk 0:04:15]}
11... Qd6 {[%clk 0:04:14.4]} 12. Bxc6 {[%clk 0:04:12.1]} 12... Ne4 {[%clk
0:04:11]} 13. Ba4 {[%clk 0:04:06.1]} 13... Bxe5 {[%clk 0:04:08.9]} 14. dxe5
{[%clk 0:04:05.2]} 14... Qxe5 {[%clk 0:04:07.7]} 15. O-O {[%clk 0:03:58.7]}
15... Kh8 {[%clk 0:03:57.9]} 16. Rd1 {[%clk 0:03:20.4]} 16... Rad8 {[%clk
0:03:47.9]} 17. Bc2 {[%clk 0:03:12.2]} 17... f5 {[%clk 0:03:32.1]} 18. f4 {[%clk
0:03:07.5]} 18... Qe6 {[%clk 0:03:28.9]} 19. Bxe4 {[%clk 0:03:03]} 19... Qxe4
{[%clk 0:03:27]} 20. b3 {[%clk 0:03:00]} 20... e5 {[%clk 0:03:22.9]} 21. fxe5
{[%clk 0:02:57.2]} 21... Qxe5 {[%clk 0:03:21]} 22. Bb2 {[%clk 0:02:55.8]} 22...
d4 {[%clk 0:03:18.8]} 23. cxd4 {[%clk 0:02:53.1]} 23... Qe4 {[%clk 0:03:14.4]}
24. Rac1 {[%clk 0:02:44.8]} 24... Kg8 {[%clk 0:03:12.5]} 25. Rxc7 {[%clk
0:02:38.5]} 25... f4 {[%clk 0:03:10.5]} 26. Qc4+ {[%clk 0:02:33.5]} 26... Rd5
{[%clk 0:03:04.8]} 27. exf4 {[%clk 0:02:15.1]} 27... Qxf4 {[%clk 0:02:53.2]} 28.
Rf1 {[%clk 0:02:03.3]} 28... Qe3+ {[%clk 0:02:48.9]} 29. Kh1 {[%clk 0:01:57.8]}
29... Rxf1+ {[%clk 0:02:23.9]} 30. Qxf1 {[%clk 0:01:55.9]} 30... Rf5 {[%clk
0:02:15.4]} 31. Qc4+ {[%clk 0:01:51.4]} 31... Kh8 {[%clk 0:02:07.5]} 32. d5+
{[%clk 0:01:45.8]} 32... Kg8 {[%clk 0:02:01.5]} 33. d6+ {[%clk 0:01:44.1]} 33...
Kf8 {[%clk 0:02:00]} 34. Rc8+ {[%clk 0:01:41]} 34... Qe8 {[%clk 0:01:53.2]} 35.
Rxe8+ {[%clk 0:01:38]} 35... Kxe8 {[%clk 0:01:52.1]} 36. Qe6+ {[%clk 0:01:36.3]}
36... Kd8 {[%clk 0:01:50.9]} 37. Qe7+ {[%clk 0:01:35.2]} 37... Kc8 {[%clk
0:01:49.6]} 38. Qc7# {[%clk 0:01:31.1]} 1-0

[Event "Live Chess"]
[Site "Chess.com"]
[Date "2024.06.02"]
[Round "-"]
[White "SimonBoy1"]
[Black "ameetghasi100"]
[Result "0-1"]
[WhiteElo "1523"]
[BlackElo "2792"]
[TimeControl "300"]
[EndTime "1:12:09 PDT"]
[Termination "ameetghasi100 won by resignation"]

1. e4 {[%clk 0:04:59.2]} 1... c5 {[%clk 0:04:58.8]} 2. Nf3 {[%clk 0:04:58]} 2...
d6 {[%clk 0:04:57.5]} 3. d4 {[%clk 0:04:54.8]} 3... cxd4 {[%clk 0:04:51.5]} 4.
Nxd4 {[%clk 0:04:54.7]} 4... Nf6 {[%clk 0:04:50.3]} 5. Nc3 {[%clk 0:04:54.2]}
5... a6 {[%clk 0:04:49.8]} 6. Be3 {[%clk 0:04:50.1]} 6... e5 {[%clk 0:04:48.3]}
7. Nf3 {[%clk 0:04:45.6]} 7... Be6 {[%clk 0:04:48.2]} 8. Be2 {[%clk 0:04:39.8]}
8... Nbd7 {[%clk 0:04:47.5]} 9. O-O {[%clk 0:04:39.4]} 9... Be7 {[%clk
0:04:46.4]} 10. Qd2 {[%clk 0:04:38.3]} 10... Rc8 {[%clk 0:04:44.9]} 11. Rad1
{[%clk 0:04:37.9]} 11... h6 {[%clk 0:04:42.9]} 12. Nd5 {[%clk 0:04:37.5]} 12...
Nxe4 {[%clk 0:04:41.2]} 0-1

[Event "Live Chess"]
[Site "Chess.com"]
[Date "2024.06.02"]
[Round "-"]
[White "defenderalist"]
[Black "Leo_the_Rex"]
[Result "1-0"]
[WhiteElo "1545"]
[BlackElo "2019"]
[TimeControl "300"]
[EndTime "1:12:43 PDT"]
[Termination "defenderalist won by resignation"]

1. e4 {[%clk 0:04:53.6]} 1... c5 {[%clk 0:04:59]} 2. Nf3 {[%clk 0:04:52.1]} 2...
e6 {[%clk 0:04:58.6]} 3. d4 {[%clk 0:04:51.2]} 3... cxd4 {[%clk 0:04:58.5]} 4.
Nxd4 {[%clk 0:04:50.6]} 4... a6 {[%clk 0:04:58.3]} 5. Bd3 {[%clk 0:04:49.1]}
5... Nf6 {[%clk 0:04:57.1]} 6. O-O {[%clk 0:04:47.9]} 6... Qc7 {[%clk
0:04:56.7]} 7. Nc3 {[%clk 0:04:46.1]} 7... Nc6 {[%clk 0:04:56.3]} 8. Nde2 {[%clk
0:04:43.3]} 8... d6 {[%clk 0:04:54.7]} 9. Be3 {[%clk 0:04:42.6]} 9... Be7 {[%clk
0:04:53.6]} 10. f4 {[%clk 0:04:41.9]} 10... O-O {[%clk 0:04:53.2]} 11. Ng3
{[%clk 0:04:37]} 11... b5 {[%clk 0:04:51.2]} 12. Nh5 {[%clk 0:04:28.4]} 12...
Bb7 {[%clk 0:04:47.2]} 13. Nxf6+ {[%clk 0:04:26.4]} 13... Bxf6 {[%clk 0:04:46]}
14. Qh5 {[%clk 0:04:19.1]} 14... g6 {[%clk 0:04:39.9]} 15. Qh3 {[%clk 0:04:11]}
15... Bg7 {[%clk 0:04:38.5]} 16. f5 {[%clk 0:04:08.1]} 16... exf5 {[%clk
0:04:26.1]} 17. exf5 {[%clk 0:04:06.9]} 17... Bd4 {[%clk 0:04:22.8]} 18. f6
{[%clk 0:03:45.1]} 18... Qb6 {[%clk 0:03:59.3]} 19. Rae1 {[%clk 0:03:29.2]}
19... Rae8 {[%clk 0:03:49.5]} 20. Rf3 {[%clk 0:03:15.9]} 20... Ne5 {[%clk
0:03:29.4]} 21. Qh6 {[%clk 0:03:11.6]} 1-0

[Event "Live Chess"]
[Site "Chess.com"]
[Date "2024.06.02"]
[Round "-"]
[White "booktrunk"]
[Black "MagnersCarlsberg2870"]
[Result "0-1"]
[WhiteElo "1500"]
[BlackElo "1832"]
[TimeControl "300"]
[EndTime "1:12:53 PDT"]
[Termination "MagnersCarlsberg2870 won by resignation"]

1. d4 {[%clk 0:04:52.8]} 1... Nf6 {[%clk 0:04:58.3]} 2. Nc3 {[%clk 0:04:47.4]}
2... b6 {[%clk 0:04:53.6]} 3. Bf4 {[%clk 0:04:27.8]} 3... Bb7 {[%clk 0:04:47.3]}
4. Nb5 {[%clk 0:04:16]} 4... d6 {[%clk 0:04:45.3]} 5. Nf3 {[%clk 0:04:13.4]}
5... g6 {[%clk 0:04:40.3]} 6. e3 {[%clk 0:04:12.7]} 6... Bg7 {[%clk 0:04:39.3]}
7. Qd3 {[%clk 0:04:07.3]} 7... Nbd7 {[%clk 0:04:37.7]} 8. Qc3 {[%clk 0:04:05.9]}
8... Nd5 {[%clk 0:04:28.5]} 9. Qc4 {[%clk 0:03:57.4]} 9... c5 {[%clk 0:04:14.7]}
10. dxc5 {[%clk 0:03:49.9]} 10... bxc5 {[%clk 0:04:12.4]} 11. Bg3 {[%clk
0:03:42.3]} 11... a6 {[%clk 0:03:48.5]} 12. Nc3 {[%clk 0:03:36.2]} 12... N7b6
{[%clk 0:03:43.6]} 13. Qd3 {[%clk 0:03:33.6]} 13... Nb4 {[%clk 0:03:37.5]} 14.
Qd1 {[%clk 0:03:29.6]} 14... O-O {[%clk 0:03:28.2]} 15. Be2 {[%clk 0:03:27.4]}
15... N4d5 {[%clk 0:03:14.4]} 16. Nxd5 {[%clk 0:03:25.1]} 16... Nxd5 {[%clk
0:03:11.5]} 17. Rb1 {[%clk 0:03:21.3]} 17... Qa5+ {[%clk 0:03:07.2]} 18. Qd2
{[%clk 0:03:15.5]} 18... Qxd2+ {[%clk 0:03:02.8]} 19. Nxd2 {[%clk 0:03:13.5]}
19... Rab8 {[%clk 0:02:57.8]} 20. O-O {[%clk 0:03:12.1]} 20... f5 {[%clk
0:02:54.6]} 21. h3 {[%clk 0:03:09.8]} 21... e5 {[%clk 0:02:52.5]} 22. Bh2 {[%clk
0:03:07.5]} 22... f4 {[%clk 0:02:50.8]} 23. exf4 {[%clk 0:03:06.2]} 23... Nxf4
{[%clk 0:02:48.8]} 24. Bxf4 {[%clk 0:03:03.4]} 24... Rxf4 {[%clk 0:02:46.6]} 25.
g3 {[%clk 0:03:01.3]} 25... Rff8 {[%clk 0:02:36.8]} 26. b3 {[%clk 0:02:59.8]}
26... d5 {[%clk 0:02:32.5]} 27. Nf3 {[%clk 0:02:52.3]} 27... e4 {[%clk
0:02:30.1]} 28. Ng5 {[%clk 0:02:50.7]} 28... Rbe8 {[%clk 0:02:21.2]} 29. h4
{[%clk 0:02:47.9]} 29... Bc8 {[%clk 0:02:14.5]} 30. f4 {[%clk 0:02:46]} 30... h6
{[%clk 0:02:12.5]} 31. Rbd1 {[%clk 0:02:37.7]} 31... d4 {[%clk 0:02:05.6]} 32.
Bc4+ {[%clk 0:02:29.3]} 32... Kh8 {[%clk 0:01:57.1]} 33. Nf7+ {[%clk 0:02:27.6]}
33... Rxf7 {[%clk 0:01:55.5]} 34. Bxf7 {[%clk 0:02:25]} 34... Re7 {[%clk
0:01:54.7]} 35. Bxg6 {[%clk 0:02:23]} 35... e3 {[%clk 0:01:52.9]} 36. Rfe1
{[%clk 0:02:19.5]} 36... Bg4 {[%clk 0:01:50.7]} 37. Rd3 {[%clk 0:02:17.2]} 37...
Re6 {[%clk 0:01:35.3]} 38. Be8 {[%clk 0:02:12]} 38... Rxe8 {[%clk 0:01:33.9]}
39. Kg2 {[%clk 0:02:07.3]} 39... Bf5 {[%clk 0:01:31.6]} 40. Rdd1 {[%clk
0:02:02.3]} 40... Bxc2 {[%clk 0:01:29.3]} 41. Rc1 {[%clk 0:02:01.8]} 41... d3
{[%clk 0:01:27.7]} 42. Kf3 {[%clk 0:01:58.2]} 42... d2 {[%clk 0:01:26.5]} 43.
Rcd1 {[%clk 0:01:50.2]} 43... Bxd1+ {[%clk 0:01:22.1]} 44. Rxd1 {[%clk
0:01:50.1]} 44... e2 {[%clk 0:01:21]} 0-1